bitfinex/quotes_SOLUSD_20250612
["timestamp","ask_amount","ask_price","bid_price","bid_amount"]
[1749736415829,213.47547028,159.01,158.94,1.6192]
[1749736415830,6.57363131,159.0,158.99,0.79494246]
[1749736416037,44.22477845,159.0,158.99,0.79494246]
[1749736418256,70.64477845,159.0,158.99,0.79494246]
[1749736419368,18.64964886,158.99,158.98,0.79494246]
[1749736419663,37.65114714,158.99,158.98,0.79494246]
[1749736420051,24.93974824,158.98,158.97,0.79494246]
[1749736420258,18.933972,158.97,158.96,0.79494246]
[1749736420458,37.93547028,158.97,158.96,0.79494246]
[1749736421268,56.93696856,158.97,158.94,0.79494246]
[1749736421465,37.93547028,158.95,158.93,0.79494246]
[1749736421760,18.933972,158.93,158.92,0.79494246]
[1749736421974,37.93547028,158.93,158.92,0.79494246]
[1749736422135,44.22754855,158.93,158.92,0.79494246]
[1749736426265,59.95774423,158.93,158.9,0.79494246]
[1749736426453,19.28582142,158.91,158.9,0.79494246]
[1749736427568,18.933972,158.9,158.89,0.79494246]
[1749736427865,18.933972,158.9,158.82,6.5733]
[1749736427866,0.28432314,158.89,158.88,0.79494246]
[1749736428068,18.64964886,158.88,158.87,0.79494246]
[1749736428251,70.36520554,158.88,158.87,0.79494246]
[1749736429669,0.28432314,158.87,158.86,0.79494246]
[1749736429879,37.93547028,158.87,158.86,0.79494246]
[1749736430048,18.933972,158.87,158.86,0.79494246]
[1749736430247,44.22992486,158.87,158.86,0.79494246]
[1749736435678,70.66992486,158.87,158.86,0.79494246]
[1749736435873,70.38560172,158.87,158.86,0.79494246]
[1749736436265,70.66992486,158.87,158.86,0.79494246]
[1749736438279,44.64964886,158.84,158.83,0.79494246]
[1749736438483,90.37547028,158.84,158.83,0.79494246]
[1749736438686,18.933972,158.83,158.81,0.79494246]
[1749736438865,44.64964886,158.81,158.8,0.79494246]
[1749736439060,63.65114714,158.81,158.8,0.79494246]
[1749736439461,70.23230297,158.81,158.8,0.79494246]
[1749736439852,18.64964886,158.76,158.69,1.5865]
[1749736440059,19.00149828,158.72,158.69,1.5865]
[1749736440266,26.44,158.71,158.69,1.5865]
[1749736442288,26.44,158.71,158.69,20.58799828]
[1749736442485,149.38432314,158.75,158.69,20.58799828]
[1749736442486,155.39934742,158.75,158.7,19.00149828]
[1749736442657,26.44,158.74,158.71,19.00149828]
[1749736443084,26.44,158.74,158.69,1.5865]
[1749736443262,19.00149828,158.72,158.69,1.5865]
[1749736443464,26.44,158.71,158.69,1.5865]
[1749736443780,26.44,158.71,158.62,28.64964886]
[1749736443781,45.44149828,158.7,158.65,20.55069828]
[1749736443969,51.74334927,158.69,158.65,1.5492]
[1749736444164,26.44,158.69,158.65,20.55069828]
[1749736445085,51.74315112,158.69,158.65,20.55069828]
[1749736445303,19.00149828,158.68,158.65,1.5492]
[1749736445580,32.74165284,158.69,158.65,1.5492]
[1749736445581,26.44,158.67,158.65,1.5492]
[1749736445785,25.30315112,158.69,158.65,20.55069828]
[1749736445786,26.44,158.66,158.65,20.55069828]
[1749736446161,26.44,158.67,158.65,20.55069828]
[1749736446365,26.44,158.67,158.65,1.5492]
[1749736446867,45.44149828,158.67,158.65,1.5492]
[1749736447083,26.44,158.67,158.63,19.00149828]
[1749736447282,26.44,158.67,158.64,19.00149828]
[1749736447462,26.44,158.67,158.63,19.00149828]
[1749736447662,45.44149828,158.67,158.62,6.124]
[1749736447883,26.44,158.67,158.63,19.00149828]
[1749736448079,26.44,158.67,158.64,19.00149828]
[1749736448279,26.44,158.67,158.62,6.124]
[1749736448593,149.1,158.72,158.62,6.124]
[1749736448594,149.1,158.72,158.67,1.6404]
[1749736448928,26.46,158.71,158.7,19.00149828]
[1749736449384,175.56,158.72,158.7,19.00149828]
[1749736449768,175.56,158.72,158.69,19.00149828]
[1749736451589,175.56,158.72,158.7,19.00149828]
[1749736451782,149.1,158.72,158.67,27.6404]
[1749736451983,149.1,158.72,158.7,19.00149828]
[1749736452790,26.46,158.71,158.67,1.6404]
[1749736452989,19.00149828,158.69,158.63,1.5013]
[1749736453290,45.46149828,158.68,158.64,19.00149828]
[1749736453587,26.46,158.67,158.64,19.00149828]
[1749736454590,26.46,158.67,158.63,1.5013]
[1749736454894,26.46,158.67,158.64,19.00149828]
[1749736455575,26.46,158.67,158.65,19.00149828]
[1749736455892,26.46,158.67,158.63,1.5013]
[1749736456190,26.46,158.67,158.65,19.00149828]
[1749736456486,26.46,158.67,158.66,19.00149828]
[1749736457083,26.46,158.69,158.66,19.00149828]
[1749736457291,26.46,158.69,158.67,19.00149828]
[1749736458293,149.1,158.7,158.68,19.00149828]
[1749736458463,12.0606,158.78,158.64,19.00149828]
[1749736458464,26.46,158.72,158.69,19.00149828]
[1749736458765,6.29881582,158.76,158.71,19.00149828]
[1749736458964,26.46,158.75,158.72,19.00149828]
[1749736459362,26.46,158.75,158.71,19.00149828]
[1749736459566,155.39847421,158.77,158.73,19.00149828]
[1749736459793,155.39847421,158.77,158.74,19.00149828]
[1749736459794,26.46,158.76,158.74,19.00149828]
[1749736459999,26.46,158.76,158.73,19.00149828]
[1749736460207,174.39997249,158.77,158.73,19.00149828]
[1749736460386,155.39847421,158.77,158.73,19.00149828]
[1749736460580,26.46,158.76,158.74,19.00149828]
[1749736460878,149.1,158.77,158.74,19.00149828]
[1749736461081,26.46,158.76,158.74,19.00149828]
[1749736461409,26.46,158.76,158.73,19.00149828]
[1749736464900,26.46,158.76,158.74,19.00149828]
[1749736465208,32.75886712,158.76,158.74,19.00149828]
[1749736465386,26.46,158.76,158.7,8.248]
[1749736465706,181.83854413,158.77,158.7,8.248]
[1749736465877,181.83854413,158.77,158.74,19.00149828]
[1749736466814,175.54,158.77,158.7,8.248]
[1749736466979,149.1,158.77,158.76,19.00149828]
[1749736467181,168.10149828,158.82,158.76,19.00149828]
[1749736467380,32.73697541,158.81,158.78,19.00149828]
[1749736467597,26.44,158.8,158.79,19.00149828]
[1749736468096,26.44,158.8,158.78,19.00149828]
[1749736468707,6.29696608,158.81,158.78,19.00149828]
[1749736468889,26.44,158.8,158.78,19.00149828]
[1749736469090,26.44,158.8,158.77,20.63969828]
[1749736470425,26.44,158.8,158.78,19.00149828]
[1749736472022,19.00149828,158.79,158.73,1.6156]
[1749736472192,18.933972,158.77,158.69,1.6156]
[1749736472394,19.00149828,158.74,158.7,19.00149828]
[1749736472604,26.44,158.74,158.7,19.00149828]
[1749736472808,26.44,158.74,158.71,19.00149828]
[1749736474613,26.44,158.74,158.69,1.6156]
[1749736474614,26.44,158.74,158.72,19.00149828]
[1749736475022,26.44,158.74,158.71,19.00149828]
[1749736475697,26.44,158.74,158.72,19.00149828]
[1749736475908,26.44,158.74,158.71,19.00149828]
[1749736476607,32.73962323,158.74,158.71,19.00149828]
[1749736477028,32.73962323,158.74,158.7,19.00149828]
[1749736477706,32.73962323,158.74,158.71,19.00149828]
[1749736478023,32.73961621,158.74,158.71,19.00149828]
[1749736478518,26.44,158.74,158.73,19.00149828]
[1749736478907,32.73893151,158.76,158.69,1.6156]
[1749736479119,32.73893151,158.76,158.72,19.00149828]
[1749736479704,32.73893151,158.76,158.73,19.00149828]
[1749736480017,181.83818575,158.78,158.75,19.00149828]
[1749736480232,155.39818575,158.78,158.76,19.00149828]
[1749736480432,155.39818575,158.78,158.77,19.00149828]
[1749736480433,149.1,158.78,158.77,19.00149828]
[1749736480925,155.39802242,158.78,158.74,19.00149828]
[1749736481331,26.44,158.77,158.74,19.00149828]
[1749736482021,26.44,158.77,158.72,26.0]
[1749736482214,26.44,158.77,158.74,19.00149828]
[1749736482400,32.73881341,158.77,158.74,19.00149828]
[1749736483411,51.74031169,158.77,158.73,19.00149828]
[1749736483612,19.00149828,158.76,158.71,19.00149828]
[1749736483799,45.44149828,158.75,158.69,1.6156]
[1749736484002,45.44149828,158.75,158.7,19.00149828]
[1749736484430,26.44,158.75,158.7,19.00149828]
[1749736484602,45.44149828,158.75,158.7,19.00149828]
[1749736486807,6.29960942,158.74,158.7,19.00149828]
[1749736487138,26.44,158.73,158.7,19.00149828]
[1749736488941,32.74019253,158.73,158.7,19.00149828]
[1749736490543,32.74019253,158.73,158.71,19.00149828]
[1749736490726,26.44,158.73,158.71,19.00149828]
[1749736493549,18.933972,158.77,158.72,19.00149828]
[1749736493753,26.44,158.76,158.73,19.00149828]
[1749736493976,32.73888949,158.76,158.73,19.00149828]
[1749736494239,6.29888949,158.76,158.73,19.00149828]
[1749736494635,32.73888949,158.76,158.73,19.00149828]
[1749736495218,6.29888949,158.76,158.73,19.00149828]
[1749736495541,32.73888949,158.76,158.73,19.00149828]
[1749736496129,19.00149828,158.74,158.69,27.6156]
[1749736496434,19.00149828,158.72,158.68,19.00149828]
[1749736496742,45.42149828,158.72,158.68,19.00149828]
[1749736497745,26.42,158.72,158.68,19.00149828]
[1749736498051,26.42,158.72,158.69,19.00149828]
[1749736499066,32.720546,158.72,158.69,19.00149828]
[1749736500325,32.720546,158.72,158.68,19.00149828]
[1749736500530,51.72204428,158.72,158.68,19.00149828]
[1749736500734,32.720546,158.72,158.68,19.00149828]
[1749736501468,32.720546,158.72,158.69,19.00149828]
[1749736501837,32.720546,158.72,158.65,1.5228]
[1749736501838,32.720546,158.72,158.68,19.00149828]
[1749736502655,32.720546,158.72,158.65,1.5228]
[1749736502656,51.72204428,158.72,158.67,19.00149828]
[1749736502833,19.00149828,158.71,158.65,1.5228]
[1749736503163,26.42,158.7,158.67,19.00149828]
[1749736504249,26.42,158.7,158.69,19.00149828]
[1749736504735,32.72120874,158.7,158.67,19.00149828]
[1749736504934,26.42,158.7,158.67,19.00149828]
[1749736505140,26.42,158.7,158.69,19.00149828]
[1749736505772,26.42,158.7,158.68,19.00149828]
[1749736507954,26.42,158.7,158.67,19.00149828]
[1749736508267,32.72128727,158.7,158.65,1.5228]
[1749736508443,32.72128727,158.7,158.66,19.00149828]
[1749736508645,32.72128727,158.7,158.67,19.00149828]
[1749736509052,32.72128727,158.7,158.66,19.00149828]
[1749736509460,32.72128727,158.7,158.67,19.00149828]
[1749736510971,32.72128727,158.7,158.66,19.00149828]
[1749736511969,32.72128727,158.7,158.67,19.00149828]
[1749736513269,51.72278555,158.7,158.66,19.00149828]
[1749736513464,32.72128727,158.7,158.66,19.00149828]
[1749736513668,51.72278555,158.7,158.66,19.00149828]
[1749736514260,32.72128727,158.7,158.66,19.00149828]
[1749736514875,51.72278555,158.7,158.65,20.52429828]
[1749736515080,175.1,158.75,158.69,19.00149828]
[1749736515375,19.00149828,158.73,158.65,1.5228]
[1749736515559,26.42,158.72,158.68,19.00149828]
[1749736516263,24.94925828,158.74,158.68,19.00149828]
[1749736516480,26.42,158.73,158.69,19.00149828]
[1749736516661,45.42149828,158.73,158.69,19.00149828]
[1749736516974,45.42149828,158.73,158.65,1.5228]
[1749736516975,19.00149828,158.72,158.67,19.00149828]
[1749736517178,51.72229848,158.71,158.66,19.00149828]
[1749736517353,26.42,158.7,158.66,19.00149828]
[1749736517695,26.42,158.7,158.62,6.0304]
[1749736517696,19.00149828,158.69,158.62,6.0304]
[1749736517979,45.42149828,158.68,158.63,19.00149828]
[1749736518148,26.42,158.67,158.63,19.00149828]
[1749736519155,6.30278583,158.66,158.63,19.00149828]
[1749736519964,6.30278583,158.66,158.57,1.5767]
[1749736519965,19.00149828,158.64,158.57,1.5767]
[1749736520156,26.42,158.64,158.59,19.00149828]
[1749736520365,19.00149828,158.63,158.58,19.00149828]
[1749736520577,19.00149828,158.63,158.57,27.5767]
[1749736520578,45.42149828,158.64,158.59,19.00149828]
[1749736521246,51.7254667,158.64,158.59,19.00149828]
[1749736521879,32.72396842,158.64,158.6,19.00149828]
[1749736522752,26.42,158.64,158.62,19.00149828]
[1749736523479,26.42,158.64,158.57,27.5767]
[1749736523480,26.42,158.65,158.63,19.00149828]
[1749736523776,175.52,158.66,158.63,19.00149828]
[1749736524286,181.82281166,158.66,158.63,19.00149828]
[1749736525079,175.52,158.66,158.63,19.00149828]
[1749736525891,175.52,158.66,158.59,26.0]
[1749736526188,175.52,158.66,158.63,19.00149828]
[1749736526358,175.52,158.66,158.64,19.00149828]
[1749736526558,175.52,158.66,158.57,1.5767]
[1749736526559,181.82282295,158.66,158.63,19.00149828]
[1749736526791,181.82282295,158.66,158.57,1.5767]
[1749736526792,181.82282295,158.66,158.62,19.00149828]
[1749736527358,181.82282295,158.66,158.63,19.00149828]
[1749736528078,175.52,158.66,158.64,19.00149828]
[1749736528258,175.52,158.66,158.59,26.0]
[1749736528559,175.52,158.66,158.64,19.00149828]
[1749736528767,149.1,158.66,158.64,19.00149828]
[1749736529770,175.52,158.66,158.64,19.00149828]
[1749736530279,175.52,158.66,158.59,26.0]
[1749736530482,175.52,158.66,158.64,19.00149828]
[1749736530886,149.1,158.66,158.64,19.00149828]
[1749736531071,175.52,158.66,158.65,19.00149828]
[1749736531379,149.1,158.66,158.65,19.00149828]
[1749736531783,149.1,158.66,158.64,19.00149828]
[1749736532481,149.1,158.66,158.65,19.00149828]
[1749736532875,149.1,158.66,158.59,26.0]
[1749736533071,155.40283014,158.66,158.63,19.00149828]
[1749736533387,155.40283014,158.66,158.59,26.0]
[1749736533689,26.42,158.65,158.62,19.00149828]
[1749736534590,26.42,158.65,158.59,26.0]
[1749736534779,32.72319048,158.65,158.62,19.00149828]
[1749736534983,51.72468876,158.65,158.59,26.0]
[1749736535284,19.00149828,158.64,158.6,19.00149828]
[1749736535478,26.42,158.63,158.6,19.00149828]
[1749736535987,32.72411571,158.63,158.6,19.00149828]
[1749736536485,51.72561399,158.63,158.59,19.00149828]
[1749736537202,32.72411571,158.63,158.57,1.5767]
[1749736537562,32.72411571,158.63,158.59,19.00149828]
[1749736539019,19.00149828,158.62,158.57,19.00149828]
[1749736539189,32.72411571,158.63,158.57,19.00149828]
[1749736539190,45.42149828,158.61,158.57,19.00149828]
[1749736540090,6.30517023,158.6,158.57,19.00149828]
[1749736540384,19.00149828,158.58,158.54,19.00149828]
[1749736540590,45.42149828,158.57,158.49,1.5818]
[1749736540777,19.00149828,158.54,158.5,19.00149828]
[1749736540971,45.42149828,158.55,158.5,19.00149828]
[1749736541174,26.42,158.54,158.49,1.5818]
[1749736541385,26.42,158.54,158.51,19.00149828]
[1749736541987,32.72782634,158.54,158.5,19.00149828]
[1749736542192,32.72782634,158.54,158.49,1.5818]
[1749736542387,51.72932462,158.54,158.49,1.5818]
[1749736542690,19.00149828,158.53,158.48,19.00149828]
[1749736542896,26.42,158.52,158.48,19.00149828]
[1749736543290,19.00149828,158.51,158.47,19.00149828]
[1749736543470,45.42149828,158.52,158.47,19.00149828]
[1749736543973,45.42149828,158.52,158.48,19.00149828]
[1749736543974,51.73010777,158.52,158.48,19.00149828]
[1749736544583,32.72860949,158.52,158.48,19.00149828]
[1749736544784,51.73010777,158.52,158.48,19.00149828]
[1749736544980,51.73010777,158.52,158.47,19.00149828]
[1749736545188,19.00149828,158.5,158.45,27.5794]
[1749736545378,19.00149828,158.49,158.44,19.00149828]
[1749736545577,26.42,158.48,158.44,19.00149828]
[1749736545989,45.42149828,158.48,158.43,19.00149828]
[1749736546195,51.73176801,158.48,158.43,19.00149828]
[1749736547396,51.73176801,158.48,158.41,27.5315]
[1749736547587,51.73176801,158.48,158.44,19.00149828]
[1749736547784,19.00149828,158.46,158.41,27.5315]
[1749736547992,45.42149828,158.46,158.41,46.53299828]
[1749736548297,51.73227363,158.46,158.42,19.00149828]
[1749736548495,51.73227363,158.46,158.41,20.53299828]
[1749736548698,51.73227363,158.46,158.41,1.5315]
[1749736548876,51.73227363,158.46,158.42,19.00149828]
[1749736549078,45.42149828,158.46,158.42,19.00149828]
[1749736549276,26.42,158.46,158.43,19.00149828]
[1749736549676,32.73090348,158.46,158.43,19.00149828]
[1749736549878,26.42,158.46,158.43,19.00149828]
[1749736550101,51.73226505,158.46,158.42,19.00149828]
[1749736550277,51.73226505,158.46,158.41,20.53299828]
[1749736550474,19.00149828,158.42,158.37,4.78676047]
[1749736550706,45.42149828,158.42,158.37,4.78676047]
[1749736550909,26.42,158.42,158.38,19.00149828]
[1749736551105,45.42149828,158.42,158.38,19.00149828]
[1749736551486,45.42149828,158.42,158.37,46.66269828]
[1749736551487,26.42,158.42,158.37,46.66269828]
[1749736551698,26.42,158.42,158.39,19.00149828]
[1749736552202,26.42,158.42,158.4,19.00149828]
[1749736553181,24.95999151,158.47,158.38,26.0]
[1749736553517,19.00149828,158.45,158.41,19.00149828]
[1749736554291,25.31298138,158.45,158.41,19.00149828]
[1749736555210,25.31298138,158.45,158.38,26.0]
[1749736555385,6.3114831,158.45,158.38,26.0]
[1749736555590,19.00149828,158.43,158.39,19.00149828]
[1749736555901,19.00149828,158.43,158.38,26.0]
[1749736555902,45.44149828,158.43,158.38,19.00149828]
[1749736556094,19.00149828,158.42,158.37,27.6612]
[1749736556287,25.31423106,158.41,158.36,19.00149828]
[1749736556695,25.31423106,158.41,158.35,26.0]
[1749736556894,25.31423106,158.41,158.36,19.00149828]
[1749736557783,19.00149828,158.39,158.33,1.6414]
[1749736557999,19.00149828,158.39,158.34,19.00149828]
[1749736558221,25.31530033,158.39,158.35,19.00149828]
[1749736558392,6.31380205,158.39,158.35,19.00149828]
[1749736558912,26.44,158.4,158.37,19.00149828]
[1749736559082,26.44,158.4,158.38,19.00149828]
[1749736559279,25.3139767,158.42,158.38,19.00149828]
[1749736559483,6.31247842,158.42,158.38,19.00149828]
[1749736559685,19.00149828,158.41,158.35,26.0]
[1749736559985,19.00149828,158.41,158.37,19.00149828]
[1749736560411,19.00149828,158.41,158.35,26.0]
[1749736560412,6.31313131,158.4,158.36,19.00149828]
[1749736560794,19.00149828,158.39,158.35,19.00149828]
[1749736561111,45.44149828,158.39,158.35,19.00149828]
[1749736561290,6.31289779,158.41,158.37,19.00149828]
[1749736561609,32.75289779,158.41,158.37,19.00149828]
[1749736561903,32.75289779,158.41,158.38,19.00149828]
[1749736562290,32.75289779,158.41,158.37,19.00149828]
[1749736563118,32.7524661,158.42,158.38,19.00149828]
[1749736563286,167.74964886,158.46,158.33,27.6414]
[1749736563287,6.31204088,158.43,158.39,19.00149828]
[1749736563617,26.44,158.42,158.38,19.00149828]
[1749736563911,45.44149828,158.42,158.37,19.00149828]
[1749736564210,45.44149828,158.42,158.38,19.00149828]
[1749736564411,51.75416778,158.42,158.38,19.00149828]
[1749736564629,32.7526695,158.42,158.38,19.00149828]
[1749736565117,19.00149828,158.4,158.35,26.0]
[1749736565285,45.44149828,158.39,158.35,26.0]
[1749736565699,45.44149828,158.39,158.33,27.6414]
[1749736565896,26.44,158.39,158.35,19.00149828]
[1749736566110,26.44,158.39,158.36,19.00149828]
[1749736566412,26.44,158.39,158.37,19.00149828]
[1749736567311,26.44,158.39,158.36,19.00149828]
[1749736568810,26.44,158.39,158.38,19.00149828]
[1749736569112,26.44,158.39,158.33,27.6414]
[1749736569113,26.44,158.39,158.35,26.0]
[1749736569413,32.75280978,158.41,158.37,19.00149828]
[1749736571601,26.44,158.41,158.38,19.00149828]
[1749736571802,32.75275261,158.41,158.37,19.00149828]
[1749736572790,26.44,158.41,158.38,19.00149828]
[1749736573000,6.31219045,158.43,158.39,19.00149828]
[1749736573194,26.44,158.42,158.39,19.00149828]
[1749736573710,174.4132072,158.44,158.39,19.00149828]
[1749736574028,26.44,158.43,158.39,19.00149828]
[1749736574214,174.4132072,158.44,158.39,19.00149828]
[1749736574401,26.44,158.43,158.4,19.00149828]
[1749736574718,26.44,158.43,158.39,19.00149828]
[1749736575423,6.31200102,158.43,158.35,26.0]
[1749736575598,32.75200102,158.43,158.39,19.00149828]
[1749736576102,149.1,158.44,158.42,19.00149828]
[1749736576301,149.1,158.44,158.43,19.00149828]
[1749736577824,149.1,158.5,158.43,19.00149828]
[1749736578003,26.44,158.49,158.48,19.00149828]
[1749736578204,155.40929187,158.5,158.48,19.00149828]
[1749736578616,26.44,158.49,158.48,19.00149828]
[1749736578816,155.40929187,158.5,158.48,19.00149828]
[1749736579015,149.1,158.5,158.48,19.00149828]
[1749736579217,26.44,158.49,158.48,19.00149828]
[1749736579610,149.1,158.5,158.48,19.00149828]
[1749736579814,175.54,158.5,158.49,19.00149828]
[1749736580524,181.84920233,158.5,158.48,19.00149828]
[1749736580820,155.40920233,158.5,158.48,19.00149828]
[1749736581027,26.44,158.49,158.48,19.00149828]
[1749736582218,175.54,158.5,158.48,19.00149828]
[1749736582399,175.54,158.5,158.45,1.5264]
[1749736582400,175.54,158.5,158.49,19.00149828]
[1749736583026,175.52,158.5,158.49,19.00149828]
[1749736584609,181.8292994,158.5,158.45,1.5264]
[1749736584803,181.8292994,158.5,158.48,19.00149828]
[1749736585422,181.8292994,158.5,158.47,19.00149828]
[1749736586333,181.8292994,158.5,158.45,1.5264]
[1749736586518,19.00149828,158.46,158.41,19.00149828]
[1749736586704,19.00149828,158.46,158.4,1.6573]
[1749736586705,26.42,158.45,158.42,19.00149828]
[1749736587513,32.73124307,158.45,158.42,19.00149828]
[1749736589536,32.73124307,158.45,158.41,19.00149828]
[1749736589730,51.73274135,158.45,158.4,19.00149828]
[1749736590317,19.00149828,158.44,158.38,26.0]
[1749736590512,45.42149828,158.43,158.38,19.00149828]
[1749736590713,25.31383258,158.42,158.38,19.00149828]
[1749736590939,26.42,158.41,158.38,19.00149828]
[1749736592634,26.42,158.41,158.4,19.00149828]
[1749736596338,26.42,158.43,158.4,19.00149828]
[1749736596541,26.42,158.43,158.42,19.00149828]
[1749736597818,26.42,158.43,158.38,18.64964886]
[1749736598017,26.42,158.43,158.42,19.00149828]
[1749736599447,149.1,158.44,158.42,19.00149828]
[1749736599636,175.52,158.44,158.42,19.00149828]
[1749736600936,149.1,158.44,158.42,19.00149828]
[1749736601140,175.52,158.44,158.42,19.00149828]
[1749736602739,149.1,158.44,158.42,19.00149828]
[1749736602948,175.52,158.44,158.42,19.00149828]
[1749736603243,26.42,158.43,158.42,19.00149828]
[1749736604235,26.42,158.43,158.41,19.00149828]
[1749736605141,26.42,158.43,158.42,19.00149828]
[1749736605741,32.73193587,158.43,158.42,19.00149828]
[1749736605940,32.73193587,158.43,158.41,19.00149828]
[1749736606137,32.73194742,158.43,158.36,1.5919]
[1749736606326,32.73194742,158.43,158.4,19.00149828]
[1749736607846,51.7334457,158.43,158.37,26.0]
[1749736608038,32.73194742,158.43,158.4,19.00149828]
[1749736608226,32.73194742,158.43,158.41,19.00149828]
[1749736610938,26.42,158.43,158.41,19.00149828]
[1749736616857,149.1,158.44,158.42,19.00149828]
[1749736617042,149.1,158.44,158.37,26.0]
[1749736617043,175.52,158.44,158.43,19.00149828]
[1749736617244,149.1,158.44,158.43,19.00149828]
[1749736618962,26.42,158.48,158.43,19.00149828]
[1749736619146,26.42,158.48,158.47,19.00149828]
[1749736619348,6.30931643,158.5,158.47,19.00149828]
[1749736619544,26.4,158.49,158.47,19.00149828]
[1749736620458,26.4,158.51,158.48,19.00149828]
[1749736620763,26.4,158.51,158.5,19.00149828]
[1749736620967,26.0,158.48,158.36,12.62818272]
[1749736621263,71.40149828,158.47,158.42,19.00149828]
[1749736621439,26.4,158.46,158.42,19.00149828]
[1749736621762,26.4,158.46,158.44,19.00149828]
[1749736621965,26.4,158.46,158.38,18.64964886]
[1749736622268,26.4,158.46,158.43,19.00149828]
[1749736622454,26.4,158.46,158.38,18.64964886]
[1749736622662,26.4,158.46,158.43,19.00149828]
[1749736623166,6.31113916,158.45,158.38,18.64964886]
[1749736623475,6.31113916,158.45,158.43,19.00149828]
[1749736623648,6.31113916,158.45,158.42,19.00149828]
[1749736624669,32.71088887,158.46,158.43,19.00149828]
[1749736625774,32.71088887,158.46,158.42,19.00149828]
[1749736625947,32.71088887,158.46,158.38,18.64964886]
[1749736625948,32.71088887,158.46,158.43,19.00149828]
[1749736626473,32.71088887,158.46,158.42,19.00149828]
[1749736627968,32.71088887,158.46,158.43,19.00149828]
[1749736629674,32.71088887,158.46,158.42,19.00149828]
[1749736630074,32.71088887,158.46,158.38,18.64964886]
[1749736630370,32.71088887,158.46,158.42,19.00149828]
[1749736631878,32.71088887,158.46,158.43,19.00149828]
[1749736633074,51.71238715,158.46,158.38,18.64964886]
[1749736633272,32.71088887,158.46,158.43,19.00149828]
[1749736633470,6.30954634,158.49,158.45,19.00149828]
[1749736633761,26.4,158.48,158.43,1.6391]
[1749736633961,26.4,158.48,158.47,19.00149828]
[1749736634263,6.30954634,158.49,158.47,19.00149828]
[1749736634468,26.4,158.48,158.47,19.00149828]
[1749736634983,6.30954634,158.49,158.47,19.00149828]
[1749736635183,26.4,158.48,158.47,19.00149828]
[1749736635383,6.30954634,158.49,158.47,19.00149828]
[1749736635585,26.4,158.49,158.48,19.00149828]
[1749736635886,181.8092159,158.5,158.48,19.00149828]
[1749736636071,155.4092159,158.5,158.48,19.00149828]
[1749736636272,26.4,158.49,158.48,19.00149828]
[1749736636782,6.308675,158.52,158.48,38.00299656]
[1749736636974,26.4,158.53,158.51,19.00149828]
[1749736637492,26.4,158.53,158.5,19.00149828]
[1749736637987,26.4,158.52,158.45,26.0]
[1749736638288,19.00149828,158.5,158.46,19.00149828]
[1749736638587,6.30994447,158.48,158.46,19.00149828]
[1749736638960,32.7096618,158.49,158.47,19.00149828]
[1749736639889,32.70954634,158.49,158.47,19.00149828]
[1749736641089,32.70954634,158.49,158.44,18.64964886]
[1749736641304,32.70954634,158.49,158.46,19.00149828]
[1749736642583,32.70954634,158.49,158.47,19.00149828]
[1749736645192,32.70954634,158.49,158.48,19.00149828]
[1749736646990,26.38,158.49,158.48,19.00149828]
[1749736648188,26.38,158.49,158.47,19.00149828]
[1749736648991,6.30994447,158.48,158.46,19.00149828]
[1749736649197,26.38,158.47,158.44,19.00149828]
[1749736649505,45.38149828,158.47,158.39,1.5563]
[1749736649673,26.38,158.47,158.43,19.00149828]
[1749736650004,26.38,158.47,158.4,18.64964886]
[1749736650176,26.38,158.47,158.43,19.00149828]
[1749736650376,45.38149828,158.47,158.43,19.00149828]
[1749736651195,6.31074088,158.46,158.43,19.00149828]
[1749736651402,26.38,158.45,158.44,19.00149828]
[1749736652319,26.38,158.45,158.39,1.5563]
[1749736652503,26.38,158.45,158.41,19.00149828]
[1749736652978,45.38149828,158.45,158.41,19.00149828]
[1749736653168,25.31303577,158.44,158.4,19.00149828]
[1749736653371,26.38,158.43,158.4,19.00149828]
[1749736653565,26.38,158.43,158.39,1.5563]
[1749736653771,26.38,158.43,158.4,19.00149828]
[1749736655289,32.69199907,158.43,158.4,19.00149828]
[1749736658310,26.38,158.43,158.41,19.00149828]
[1749736662623,32.69200757,158.43,158.39,1.5563]
[1749736662917,32.69200757,158.43,158.4,19.00149828]
[1749736663620,19.00149828,158.42,158.35,1.6208]